[Event "BL 2024-25"]
[Site "Austria"]
[Date "2024.10.12"]
[Round "4.1"]
[White "Krivoborodov, Egor"]
[Black "Abasov, Nijat"]
[Result "1/2-1/2"]
[Annotator "TA"]
[ECO "B13"]
[WhiteElo "2555"]
[BlackElo "2619"]
[PlyCount "60"]
[EventDate "2024.08.28"]
[EventType "team-tourn"]
[EventCountry "AUT"]
[SourceTitle "playchess.com"]
[Source "ChessBase"]
[SourceQuality "1"]
[WhiteTeam "Frauental"]
[BlackTeam "Feffernitz"]
[TimeControl "40/5400+30:1800+30"]

{[%evp 9,60,0,0,1,9,0,10,11,14,7,12,10,10,10,15,4,10,0,0,0,0,0,0,8,8,0,7,-1,16,21,26,20,27,32,25,32,0,18,28,19,41,36,32,32,50,22,85,0,0,0,0,0,0]} 1. d4 {[%emt 0:00:03]} d5 {[%emt 0:00:05]} 2. Bf4 {[%emt 0:00:08]} c5 {[%emt 0:00:10]} 3. e3 {[%emt 0:00:04]} Nc6 {[%emt 0:00:20]} 4. Nf3 {[%emt 0:00:18]} cxd4 {[%emt 0:02:59]} 5. exd4 {[%emt 0:00:45]} Bf5 {[%emt 0:00:13]} 6. c3 {[%emt 0:00:54]} e6 {[%emt 0:00:26]} 7. Bb5 {[%emt 0:00:05]} Bd6 {[%emt 0:01:34]} 8. Bxd6 {[%emt 0:00:19]} Qxd6 {[%emt 0:00:07]} 9. O-O {[%emt 0:00:04]} h6 {[%emt 0:08:07]} 10. Nbd2 {[%emt 0:00:44]} Nge7 {[%emt 0:01:07][%cal Bg8e7,Be7c8,Bc8d6][%mdl 32]} 11. Re1 {[%emt 0:00:12]} O-O {[%emt 0:00:17]} 12. a4 {[%emt 0:00:14]} Qc7 {[%emt 0:04:04]} 13. h3 {[%emt 0:08:17]} Nc8 {[%emt 0:01:46]} 14. Bxc6 {[%emt 0:00:24]} Qxc6 {[%emt 0:00:42]} 15. Ne5 {[%emt 0:00:04]} Qc7 {[%emt 0:00:28]} 16. Nf1 {[%emt 0:00:02][%cal Bd2f1,Bf1g3,Bg3h5,Bh5f4][%mdl 32]} Nd6 {[%emt 0:00:20]} 17. Ng3 {[%emt 0:00:09]} Bh7 {[%emt 0:12:44]} 18. Nh5 {[%emt 0:03:38]} Rae8 {[%emt 0:05:19]} 19. Qg4 {[%emt 0:14:03][%csl Gh5][%cal Rg4g7] [#]} f6 {[%emt 0:00:15]} 20. Ng6 {[%emt 0:00:18]} Bxg6 {[%emt 0:00:11]} 21. Qxg6 {[%emt 0:00:04]} Qf7 {[%emt 0:00:11]} 22. Nf4 {[%emt 0:00:45]} Qxg6 {[%emt 0:01:29]} 23. Nxg6 {[%emt 0:00:25]} Rf7 {[%emt 0:00:03]} 24. h4 {[%emt 0:01:01][%cal Bh3h4,Bh4h5][%mdl 32]} Rc7 {[%emt 0:00:43]} 25. h5 {[%emt 0:03:09]} Kf7 {[%emt 0:00:08]} 26. Re2 {[%emt 0:02:56]} a5 {[%emt 0:06:03]} 27. Rae1 {[%emt 0:03:59]} b6 {[%emt 0:01:15] [#]} (27... Rc4 $11) 28. Rxe6 {[%emt 0:04:56]} Rxe6 $11 {[%emt 0:00:07] The position is equal.} 29. Nh8+ {[%emt 0:00:02]} Ke7 {[%emt 0:00:11]} 30. Ng6+ {[%emt 0:00:01]} Kf7 {[%emt 0:00:10] Weighted Error Value: White=0.07 (flawless) /Black=0.08 (flawless) .  Mistake:       	White=1     	Black=1      Inaccurate:     	White=1     	---        OK:         	White=10    	Black=11     Best:        	White=2     	Black=4} 1/2-1/2

[Event "BL 2024-25"]
[Site "Austria"]
[Date "2024.10.12"]
[Round "4.2"]
[White "Karthik Venkataraman"]
[Black "Fahrner, Kurt"]
[Result "1-0"]
[Annotator "TA"]
[ECO "A53"]
[WhiteElo "2581"]
[BlackElo "2314"]
[PlyCount "45"]
[EventDate "2024.08.28"]
[EventType "team-tourn"]
[EventCountry "AUT"]
[SourceTitle "playchess.com"]
[Source "ChessBase"]
[SourceQuality "1"]
[WhiteTeam "Feffernitz"]
[BlackTeam "Frauental"]
[TimeControl "40/5400+30:1800+30"]

{[%evp 9,45,47,68,52,57,41,54,50,54,35,50,56,52,59,50,58,227,210,227,208,275,281,281,277,275,272,283,270,259,250,316,305,318,338,323,326,1845,1850]} 1. d4 {[%emt 0:00:03]} d6 {[%emt 0:00:03]} 2. Nf3 {[%emt 0:00:23]} Nf6 {[%emt 0:00:06]} 3. c4 {[%emt 0:00:06]} Bf5 {[%emt 0:00:03]} 4. Nc3 {[%emt 0:00:12]} Na6 {[%emt 0:00:13]} 5. Nh4 {[%emt 0:09:16]} Bd7 {[%emt 0:00:06]} 6. g3 {[%emt 0:00:31]} Qc8 {[%emt 0:03:46]} 7. Bg5 {[%emt 0:07:40]} c5 {[%emt 0:24:35]} 8. Bxf6 {[%emt 0:01:04] White is slightly better.} exf6 {[%emt 0:09:39]} 9. Nd5 {[%emt 0:09:36]} Be7 {[%emt 0:07:39]} 10. Nxe7 {[%emt 0:00:44]} Kxe7 {[%emt 0:00:04]} 11. Bg2 {[%emt 0:00:34][%cal Bf1g2,Bg2b7,Bb7a6,Ba6c4,Bc4d3][%mdl 32]} Rd8 {[%emt 0:04:12]} 12. Qd3 {[%emt 0:04:32] [#] Strongly threatening Qe4+.} cxd4 $2 {[%emt 0:00:58] This costs Black the game.} ({Better is} 12... g6 $14) 13. Qxh7 $18 {[%emt 0:05:24]} ({Weaker is} 13. Qxd4 Be6 $14) 13... Qxc4 {[%emt 0:05:10]} 14. O-O {[%emt 0:01:26]} Be6 {[%emt 0:07:46]} 15. Bxb7 {[%emt 0:04:05]} ({But not} 15. Qxg7 $6 Rg8 16. Qh7 Nc5 $18) 15... Rab8 {[%emt 0:02:07]} 16. Rac1 {[%emt 0:02:19]} Qb5 {[%emt 0:01:41] [#]} 17. Ng6+ $1 {[%emt 0:07:55][%mdl 512]} fxg6 {[%emt 0:07:11]} 18. Qxg7+ {[%emt 0:00:29]} Bf7 {[%emt 0:00:06]} 19. Bxa6 {[%emt 0:00:05]} Qa5 {[%emt 0:00:30][%cal Od8g8]} 20. Bc4 {[%emt 0:01:29][%csl Gc4][%cal Rg7f7]} d5 {[%emt 0:00:58]} 21. Bd3 {[%emt 0:00:24]} Rg8 {[%emt 0:01:23]} 22. Qh6 {[%emt 0:01:56]} g5 $2 {[%emt 0:00:05]} (22... Rh8 23. Qf4 Rhc8) 23. Rc6 {[%emt 0:00:32] Weighted Error Value: White=0.04 (flawless) /Black=0.39.  Loses game:     	---       	Black=1      Mistake:       	---       	Black=1      Inaccurate:     	---       	Black=1      OK:         	White=10    	Black=4      Best:        	White=2     	Black=5} 1-0

[Event "BL 2024-25"]
[Site "Austria"]
[Date "2024.10.12"]
[Round "4.3"]
[White "Steiner, Stefan"]
[Black "Ghosh, Diptayan"]
[Result "0-1"]
[Annotator "TA"]
[ECO "E06"]
[WhiteElo "2302"]
[BlackElo "2566"]
[PlyCount "42"]
[EventDate "2024.08.28"]
[EventType "team-tourn"]
[EventCountry "AUT"]
[SourceTitle "playchess.com"]
[Source "ChessBase"]
[SourceQuality "1"]
[WhiteTeam "Frauental"]
[BlackTeam "Feffernitz"]
[TimeControl "40/5400+30:1800+30"]

{[%evp 11,42,21,27,-3,12,17,14,13,22,14,20,-61,-53,-79,-85,-131,-137,-301,-289,-429,-400,-437,-453,-389,-231,-264,-257,-241,-264,-272,-245,-368,-389]} 1. d4 {[%emt 0:00:04]} d5 {[%emt 0:02:38]} 2. c4 {[%emt 0:00:16]} e6 {[%emt 0:01:07]} 3. Nf3 {[%emt 0:00:07]} Nf6 {[%emt 0:00:06]} 4. g3 {[%emt 0:00:05]} Be7 {[%emt 0:01:23]} 5. Bg2 {[%emt 0:00:06]} O-O {[%emt 0:00:05]} 6. O-O {[%emt 0:00:05]} a5 {[%emt 0:00:05]} 7. Nbd2 {[%emt 0:07:15]} a4 {[%emt 0:01:43]} 8. Qc2 {[%emt 0:02:56]} Nc6 {[%emt 0:01:16]} 9. Rd1 {[%emt 0:04:11] The position is equal.} Nb4 {[%emt 0:03:09]} 10. Qb1 {[%emt 0:05:58]} c5 {[%emt 0:02:32]} 11. e4 {[%emt 0:24:53]} (11. a3 $11 Nc6 12. dxc5) 11... cxd4 $15 {[%emt 0:09:53] Black is more active.} 12. cxd5 {[%emt 0:20:21]} exd5 {[%emt 0:02:02]} 13. exd5 {[%emt 0:17:08]} (13. a3 $142 Nc6 14. e5) 13... Qxd5 {[%emt 0:06:22] Threatens to win with ...Bf5.} 14. Ne1 $2 {[%emt 0:04:00] [#]} (14. Re1 $17 {keeps fighting.}) 14... Qh5 $1 $19 {[%emt 0:02:30]} 15. Bf3 {[%emt 0:00:27]} (15. Ndf3 {was worth a try.}) 15... Ng4 {[%emt 0:06:56]} 16. h3 {[%emt 0:00:20]} Qxh3 {[%emt 0:00:34]} 17. Nf1 {[%emt 0:00:20] Repels Qh2+} Ne5 {[%emt 0:03:22]} (17... Nxf2 $142 18. Kxf2 Bf5) 18. Be4 {[%emt 0:01:42] Prevents Bf5.} Nbc6 {[%emt 0:10:43]} 19. Bf4 {[%emt 0:00:36]} Bf6 {[%emt 0:01:59]} 20. Nh2 {[%emt 0:02:41]} Re8 {[%emt 0:03:07]} 21. Nef3 {[%emt 0:03:47]} (21. Bxe5 {might work better.} Rxe5 (21... Nxe5 $2 22. Qc2 $19) 22. Bg2) 21... Nxf3+ {[%emt 0:02:03] White did not feel at home in the position after the opening.   Weighted Error Value: White=0.46/Black=0.23 (precise) .  Loses game:     	White=1     	---        Mistake:       	White=4     	Black=1      Inaccurate:     	White=1     	---        OK:         	White=6     	Black=6      Strong:       	---       	Black=1} 0-1

[Event "BL 2024-25"]
[Site "Austria"]
[Date "2024.10.12"]
[Round "4.4"]
[White "Kunin, Vitaly"]
[Black "Krebs, Johann"]
[Result "1-0"]
[Annotator "TA"]
[ECO "B07"]
[WhiteElo "2528"]
[BlackElo "2217"]
[PlyCount "109"]
[EventDate "2024.08.28"]
[EventType "team-tourn"]
[EventCountry "AUT"]
[SourceTitle "playchess.com"]
[Source "ChessBase"]
[SourceQuality "1"]
[WhiteTeam "Feffernitz"]
[BlackTeam "Frauental"]
[TimeControl "40/5400+30:1800+30"]

{[%evp 18,109,18,20,35,0,28,0,0,0,61,11,58,0,0,0,-12,-14,-5,-10,32,0,58,15,32,24,15,0,0,0,9,4,8,11,28,32,27,23,80,10,170,63,47,62,91,68,127,118,110,18,17,18,16,26,36,29,22,31,23,19,26,0,0,0,0,1,1,0,0,0,0,0,0,0,0,0,0,0,0,0,0,-6,0,0,0,0,1693,1598,1547,1577,1665,1632,5202,5006]} 1. d4 {[%emt 0:00:16]} Nf6 {[%emt 0:00:26]} 2. Nf3 {[%emt 0:00:50]} g6 {[%emt 0:00:35]} 3. g3 {[%emt 0:00:11]} Bg7 {[%emt 0:00:14]} 4. Bg2 {[%emt 0:00:08]} O-O {[%emt 0:01:53]} 5. O-O {[%emt 0:00:10]} d6 {[%emt 0:00:52]} 6. a4 {[%emt 0:00:23]} a5 {[%emt 0:06:35]} 7. Nc3 {[%emt 0:00:57]} Nbd7 {[%emt 0:00:20]} 8. e4 {[%emt 0:00:30]} e5 {[%emt 0:00:19]} 9. Re1 {[%emt 0:00:57]} Re8 {[%emt 0:09:58]} 10. h3 {[%emt 0:03:46]} c6 {[%emt 0:10:34]} 11. d5 {[%emt 0:03:59]} Nc5 {[%emt 0:01:55]} 12. Nd2 {[%emt 0:01:44]} cxd5 {[%emt 0:04:17] The position is equal.} 13. exd5 {[%emt 0:00:20]} Bd7 {[%emt 0:02:11]} ({Black should play} 13... b6 $11) 14. b3 {[%emt 0:08:17]} (14. Nc4 $14) 14... e4 {[%emt 0:15:44]} 15. Rb1 {[%emt 0:09:31]} (15. Nc4 $1 $14) 15... e3 $1 $11 {[%emt 0:02:57]} 16. Rxe3 {[%emt 0:02:39]} Rxe3 {[%emt 0:01:18]} 17. fxe3 {[%emt 0:00:08]} Nh5 $1 {[%emt 0:04:12]} 18. Ne2 {[%emt 0:01:32]} Rc8 {[%emt 0:12:59]} 19. Bb2 {[%emt 0:17:55]} (19. g4 $5 Nf6 $8 20. Nf4 $14) 19... Qg5 {[%emt 0:05:34]} (19... Bxb2 $11 20. Rxb2 Qe7) 20. Nf1 {[%emt 0:00:54]} Bf5 {[%emt 0:02:38]} 21. Bxg7 {[%emt 0:01:06]} Nxg7 {[%emt 0:00:41]} 22. b4 {[%emt 0:07:05]} axb4 {[%emt 0:04:31]} 23. Rxb4 {[%emt 0:00:25]} Ra8 {[%emt 0:00:49]} 24. Nc3 {[%emt 0:03:44]} h5 {[%emt 0:00:34]} 25. Qd2 {[%emt 0:04:58]} Qe7 {[%emt 0:00:36]} 26. e4 {[%emt 0:05:19]} Bd7 {[%emt 0:00:14][%cal Rd7a4]} 27. Qd4 $36 {[%emt 0:00:14][%mdl 2048] White has good play.} Re8 {[%emt 0:00:28]} (27... Qg5 $11 {remains equal.}) 28. Rb6 {[%emt 0:02:31]} (28. h4 $16) 28... f5 $2 {[%emt 0:02:04] [#]} (28... Ra8 $11 {and Black stays safe.}) 29. e5 $1 {[%emt 0:00:16][%mdl 512]} Qxe5 $14 {[%emt 0:03:20]} ({Much worse is} 29... dxe5 30. Qb4 e4 31. Rxg6 $16) 30. Qxe5 {[%emt 0:00:31]} Rxe5 {[%emt 0:00:01]} 31. Rxd6 {[%emt 0:00:25]} Re1 {[%emt 0:00:39]} (31... Kf7 $14) 32. Rxg6 {[%emt 0:00:51]} Rc1 {[%emt 0:00:30]} 33. d6 {[%emt 0:09:32]} ({Better is} 33. Ne2 $16 Rxc2 34. Nf4) 33... Kh7 $1 $11 {[%emt 0:03:17]} 34. Rf6 {[%emt 0:00:28][%cal Bg6f6,Bf6f7,Bf7e7][%mdl 32]} Ne8 {[%emt 0:00:14]} 35. Rf7+ {[%emt 0:00:30]} Kg6 {[%emt 0:00:20]} 36. Re7 {[%emt 0:00:44] Ne2 is the strong threat.} Nxd6 {[%emt 0:01:07]} 37. Ne2 {[%emt 0:03:22]} Rxc2 {[%emt 0:01:32][%cal Og6f6]} 38. Nf4+ {[%emt 0:00:13]} Kf6 {[%emt 0:00:11]} 39. Rh7 {[%emt 0:00:45]} Bxa4 {[%emt 0:01:38]} 40. Ne3 {[%emt 0:03:45]} Rc1+ {[%emt 0:01:34]} 41. Kh2 {[%emt 0:30:07] aiming for Ned5+.} Bc6 {[%emt 0:00:53]} 42. Rh6+ {[%emt 0:00:00]} (42. Rxh5 {simplifies} Bxg2 43. Kxg2 Nce4 44. g4) 42... Ke5 {[%emt 0:02:23]} 43. Bxc6 {[%emt 0:00:00]} bxc6 {[%emt 0:00:15]} 44. Rxh5 {[%emt 0:00:00]} Ke4 {[%emt 0:00:29]} 45. Neg2 {[%emt 0:00:00]} Kf3 {[%emt 0:18:00]} 46. Nh4+ {[%emt 0:00:00]} Ke4 {[%emt 0:00:11]} 47. Rh7 {[%emt 0:00:00] Re7+ would now be deadly.} Rc2+ {[%emt 0:01:09]} 48. Nhg2 {[%emt 0:00:00] And now Re7+ would win.} Kf3 {[%emt 0:00:33]} 49. Ra7 {[%emt 0:00:00] Prevents Ra2} Nde4 {[%emt 0:03:42]} 50. Ra3+ {[%emt 0:00:00]} Kf2 {[%emt 0:00:10]} 51. h4 {[%emt 0:00:00]} Nd2 $2 {[%emt 0:02:54][%mdl 8192]} (51... Nf6 $11 52. Nh3+ Ke2) 52. Nh3+ $18 {[%emt 0:00:00] White is clearly winning.} Kf1 {[%emt 0:02:12]} 53. Ne3+ {[%emt 0:00:00]} Ke2 {[%emt 0:00:11]} 54. Nxc2 {[%emt 0:00:00] Intending Nd4+ and mate.} Nf3+ {[%emt 0:00:15]} 55. Kg2 {[%emt 0:00:00] Weighted Error Value: White=0.18 (very precise) /Black=0.20 (precise) .  Loses game:     	---       	Black=1      Mistake:       	White=5     	Black=6      Inaccurate:     	White=5     	Black=3      OK:         	White=16    	Black=12     Best:        	White=3     	Black=3      Strong:       	---       	Black=3} 1-0

[Event "BL 2024-25"]
[Site "Austria"]
[Date "2024.10.12"]
[Round "4.5"]
[White "Ebner, Hubert"]
[Black "Pajeken, Jakob Leon"]
[Result "0-1"]
[Annotator "TA"]
[ECO "E17"]
[WhiteElo "2182"]
[BlackElo "2423"]
[PlyCount "80"]
[EventDate "2024.08.28"]
[EventType "team-tourn"]
[EventCountry "AUT"]
[SourceTitle "playchess.com"]
[Source "ChessBase"]
[SourceQuality "1"]
[WhiteTeam "Frauental"]
[BlackTeam "Feffernitz"]
[TimeControl "40/5400+30:1800+30"]

{[%evp 23,80,0,4,0,124,0,45,52,42,39,29,0,0,-211,-204,-228,-215,-211,-220,-288,-283,-268,-153,-255,-275,-258,-186,-175,-179,-175,-178,-175,-174,-183,-185,-226,-206,-264,-262,-262,-270,-251,-254,-252,-241,-529,-497,-515,-516,-643,-652,-621,-645,-616,-627,-779,-723,-654,-646]} 1. d4 {[%emt 0:00:16]} Nf6 {[%emt 0:00:14]} 2. Nf3 {[%emt 0:02:05]} e6 {[%emt 0:00:30]} 3. g3 {[%emt 0:00:55]} b6 {[%emt 0:02:40]} 4. Bg2 {[%emt 0:00:31]} Bb7 {[%emt 0:00:04]} 5. O-O {[%emt 0:00:34]} Be7 {[%emt 0:00:13]} 6. c4 {[%emt 0:02:54]} O-O {[%emt 0:00:11]} 7. d5 {[%emt 0:04:24]} exd5 {[%emt 0:00:20]} 8. Nh4 {[%emt 0:00:09]} c6 {[%emt 0:00:21]} 9. cxd5 {[%emt 0:00:52]} Nxd5 {[%emt 0:00:32]} 10. Nf5 {[%emt 0:00:11]} Nc7 {[%emt 0:01:06]} 11. e4 {[%emt 0:04:07]} d5 {[%emt 0:01:03]} 12. Nc3 {[%emt 0:04:15]} Nba6 {[%emt 0:03:23]} 13. Bf4 {[%emt 0:22:38]} Ne6 {[%emt 0:05:50]} (13... Bf6 $11 {keeps the balance.}) 14. Qg4 {[%emt 0:04:18]} (14. exd5 $16 Nxf4 15. dxc6 (15. gxf4 Bc8 $18) 15... Nxg2 16. cxb7) 14... h5 {[%emt 0:21:07]} 15. Qxh5 {[%emt 0:01:27] White is slightly better.} Nxf4 {[%emt 0:01:01]} 16. gxf4 {[%emt 0:00:12] exd5 is the strong threat.} g6 {[%emt 0:00:56]} 17. Qh6 {[%emt 0:12:16][%csl Gf5][%cal Rh6g7]} gxf5 {[%emt 0:00:35]} 18. Kh1 $2 {[%emt 0:04:50] White is now going downhill.} (18. e5 $1 $11 Re8 19. Kh1) 18... Qd6 $19 {[%emt 0:00:54]} (18... fxe4 19. Bxe4 f5 20. Rg1+) (18... dxe4 $2 19. Rg1 $18) 19. Qh3 {[%emt 0:01:12]} Qxf4 {[%emt 0:12:22]} (19... fxe4 $2 20. Bxe4 f5 (20... dxe4 $2 21. Rg1+ $18) 21. Rg1+ Kf7 22. Qh5+ Ke6 23. Bxf5+ Rxf5 24. Rae1+ Kd7 25. Qxf5+ Kd8 (25... Kc7 $2 26. Qf7 $18) 26. Rg7 $18) 20. exd5 {[%emt 0:08:08]} Qg4 {[%emt 0:15:33]} 21. Qe3 {[%emt 0:02:44]} Bc5 {[%emt 0:01:33]} 22. Qh6 {[%emt 0:00:09] [#] Hoping for Rg1.} Qg6 {[%emt 0:01:36]} (22... Rad8 $1 $19 {[%cal Rd8d6] Threatens to win with ...Rd6.} 23. Rg1 Rd6 (23... Bxf2 $2 {is the wrong capture.} 24. Bh3 $18) (23... cxd5 $2 {perishes.} 24. Bf3 $18) 24. Qxd6 Bxd6) 23. Qh4 {[%emt 0:00:13] [#]} (23. Qh3 $17 Qg4 24. Qxg4+ fxg4 25. dxc6) 23... Kg7 $1 {[%emt 0:02:28]} 24. dxc6 {[%emt 0:03:35]} Bxc6 {[%emt 0:01:38]} 25. Rg1 {[%emt 0:00:12]} Rh8 {[%emt 0:00:17]} 26. Bxc6 {[%emt 0:06:36]} Rxh4 {[%emt 0:00:08]} 27. Rxg6+ {[%emt 0:00:06]} fxg6 {[%emt 0:00:09]} ({Don't play} 27... Kxg6 28. Rg1+ Kh6 29. Bxa8 $17) 28. Bxa8 {[%emt 0:00:06]} Bxf2 {[%emt 0:00:38]} 29. Kg2 {[%emt 0:00:31]} Bd4 {[%emt 0:01:13]} 30. Nb5 {[%emt 0:02:55]} Bxb2 {[%emt 0:00:46]} 31. Re1 {[%emt 0:00:34]} Kf6 {[%emt 0:02:36]} 32. Nxa7 {[%emt 0:01:17]} Be5 {[%emt 0:01:27]} 33. h3 {[%emt 0:01:01]} Ra4 {[%emt 0:01:09]} 34. Re2 $2 {[%emt 0:05:30]} (34. Nc8 {is a better defense.}) 34... Nc5 {[%emt 0:01:45] Black is clearly winning.} 35. Nc6 {[%emt 0:00:20]} Nd3 {[%emt 0:05:18] White must now prevent ...Nf4+.} 36. Nxe5 {[%emt 0:02:24]} Nf4+ {[%emt 0:00:24]} 37. Kf2 {[%emt 0:00:07]} Nxe2 {[%emt 0:00:15]} 38. Nd7+ {[%emt 0:00:06]} Kg5 {[%emt 0:00:36]} 39. Nxb6 {[%emt 0:00:08]} Rxa2 {[%emt 0:00:15] ...Nc1+ would now be deadly.} 40. Bd5 {[%emt 0:00:08]} Ra6 {[%emt 0:00:25] Weighted Error Value: White=0.50/Black=0.19 (very precise) .  Loses game:     	White=1     	---        Mistake:       	White=3     	Black=2      Inaccurate:     	White=2     	Black=1      OK:         	White=12    	Black=9      Best:        	White=2     	Black=5      Strong:       	---       	Black=1} 0-1

[Event "BL 2024-25"]
[Site "Austria"]
[Date "2024.10.12"]
[Round "4.6"]
[White "Brunello, Sabino"]
[Black "Gruenwald, Simon"]
[Result "1-0"]
[Annotator "TA"]
[ECO "A11"]
[WhiteElo "2514"]
[BlackElo "2143"]
[PlyCount "81"]
[EventDate "2024.08.28"]
[EventType "team-tourn"]
[EventCountry "AUT"]
[SourceTitle "playchess.com"]
[Source "ChessBase"]
[SourceQuality "1"]
[WhiteTeam "Feffernitz"]
[BlackTeam "Frauental"]
[TimeControl "40/5400+30:1800+30"]

{[%evp 9,81,23,23,33,29,27,69,83,177,210,256,273,252,269,264,152,155,147,406,417,388,399,463,430,699,708,881,864,833,701,677,665,1006,582,543,416,395,-39,-50,-55,-58,-68,-59,-62,-62,-60,-54,-52,-17,-20,0,-40,-11,-18,230,319,269,338,339,328,357,303,285,208,207,206,210,197,6295,5502,29977,29978,29980,29981]} 1. c4 {[%emt 0:00:03]} c6 {[%emt 0:00:01]} 2. Nf3 {[%emt 0:00:29]} d5 {[%emt 0:00:02]} 3. g3 {[%emt 0:00:08]} Bg4 {[%emt 0:00:03]} 4. Ne5 {[%emt 0:04:12]} Bf5 {[%emt 0:01:42]} 5. Qb3 {[%emt 0:00:28]} Qb6 {[%emt 0:02:55]} 6. cxd5 {[%emt 0:03:15]} Qxb3 {[%emt 0:00:31]} 7. axb3 {[%emt 0:00:07]} cxd5 {[%emt 0:03:52]} 8. Nc3 {[%emt 0:11:05][%cal Oc3b5,Bb1c3,Bc3d5,Bd5c7][%mdl 32] White is slightly better.} Nc6 {[%emt 0:12:09] [#]} (8... f6 $16) 9. Nxd5 $1 $18 {[%emt 0:22:49] Black must now prevent Nxc6.} Nxe5 {[%emt 0:04:28]} (9... Rc8 10. Nxc6) 10. Nc7+ {[%emt 0:02:58]} Kd7 {[%emt 0:02:57]} 11. Nxa8 {[%emt 0:00:08]} Nc6 {[%emt 0:00:13] [#]} 12. d4 {[%emt 0:05:45]} e6 $16 {[%emt 0:01:49]} 13. Bg2 {[%emt 0:01:04]} Nf6 $2 {[%emt 0:22:08][%mdl 8192]} (13... Bb4+ $16 {was worth a try.} 14. Bd2 Bxd2+ 15. Kxd2 Nge7) 14. Bxc6+ $18 {[%emt 0:03:19]} Kxc6 {[%emt 0:01:12]} 15. Rxa7 {[%emt 0:00:11]} Nd5 {[%emt 0:33:32]} 16. f3 {[%emt 0:08:38]} Nb4 {[%emt 0:01:24]} (16... Nb6 $142 17. Kf2 Nxa8 18. Rxa8 g5 19. Bxg5 Bc5) 17. e4 {[%emt 0:01:29]} Bh3 {[%emt 0:01:48]} 18. Ke2 {[%emt 0:00:58]} Bd6 {[%emt 0:03:07]} 19. Be3 {[%emt 0:00:07]} Rb8 {[%emt 0:00:15]} 20. Rc1+ {[%emt 0:03:55]} Kb5 {[%emt 0:00:08]} 21. Nc7+ {[%emt 0:00:30]} Bxc7 {[%emt 0:00:35]} 22. Rxc7 {[%emt 0:00:06] White threatens Rc5+ and mate.} Kb6 {[%emt 0:00:07] [#]} 23. Rcxb7+ {[%emt 0:00:17]} Rxb7 $15 {[%emt 0:00:18]} 24. d5+ {[%emt 0:00:05]} Kc7 {[%emt 0:00:34]} 25. Ra4 {[%emt 0:20:18]} (25. Rxb7+ Kxb7 26. Bd2 Na6 $17) 25... exd5 {[%emt 0:01:38]} 26. Bc5 $1 {[%emt 0:01:55]} Nc6 {[%emt 0:02:43] Hoping for ...dxe4.} 27. exd5 {[%emt 0:00:08]} Ne5 {[%emt 0:02:15]} 28. b4 {[%emt 0:08:20]} Bd7 {[%emt 0:00:48]} 29. Ra8 {[%emt 0:00:12]} h5 {[%emt 0:01:00]} 30. b3 {[%emt 0:01:21]} Bb5+ {[%emt 0:00:44]} 31. Ke3 {[%emt 0:00:11]} Rb8 $2 {[%emt 0:00:28]} (31... Nd7 $11 {and Black stays safe.}) 32. Rxb8 $18 {[%emt 0:01:21]} Kxb8 {[%emt 0:00:24]} 33. Bd6+ {[%emt 0:00:02]} Kc8 {[%emt 0:00:14]} 34. Bxe5 {[%emt 0:00:03][%mdl 4096] Endgame. KB-KB} g6 {[%emt 0:00:10]} 35. Kd4 {[%emt 0:00:41]} Kd7 {[%emt 0:00:21]} 36. f4 {[%emt 0:00:43]} Be2 {[%emt 0:00:25]} 37. Kc5 {[%emt 0:00:35]} Ba6 {[%emt 0:00:19]} 38. b5 {[%emt 0:00:44][%cal Bb4b5,Bb5b6][%mdl 32]} Bc8 {[%emt 0:00:02]} (38... Bb7 39. Bc3 Ba8) 39. Kb6 {[%emt 0:00:27] And now Ka7 would win.} Kd8 {[%emt 0:00:27]} 40. Ka7 {[%emt 0:00:34]} Bd7 {[%emt 0:00:02]} 41. b6 {[%emt 0:30:07] Weighted Error Value: White=0.80/Black=0.55.  Loses game:     	---       	Black=2      Missed win:     	White=1     	---        Mistake:       	White=1     	Black=3      Inaccurate:     	White=1     	Black=4      OK:         	White=11    	Black=8      Best:        	White=5     	Black=3      Strong:       	White=2     	---} 1-0